[Event "Titled Tuesday Blitz February 28 Early 2023"]
[White "Bas Mas, Jose Joaquin"]
[Black "Alex_Sahakyan2006"]
[WhiteFideId "22219064"]
[WhiteElo "2233"]
[BlackElo "2645"]
[Result "0-1"]
[Round "03"]
[TimeControl "180+2"]
[Date "2023.02.28"]
[WhiteClock "0:00:03"]
[BlackClock "0:00:31"]

1. e4 {[%clk 0:03:00]}  d5 {[%clk 0:02:57]} 2. exd5 {[%clk 0:03:00]}  Qxd5 {[%clk 0:02:58]} 3. Nc3 {[%clk 0:02:59]}  Qd8 {[%clk 0:02:58]} 4. d4 {[%clk 0:02:59]}  Nf6 {[%clk 0:02:59]} 5. Nge2 {[%clk 0:02:57]}  c6 {[%clk 0:02:56]} 6. h3 {[%clk 0:02:56]}  Bf5 {[%clk 0:02:52]} 7. g4 {[%clk 0:02:55]}  Bg6 {[%clk 0:02:52]} 8. Bg2 {[%clk 0:02:55]}  e6 {[%clk 0:02:52]} 9. O-O {[%clk 0:02:39]}  Bd6 {[%clk 0:02:50]} 10. f4 {[%clk 0:02:34]}  Nbd7 {[%clk 0:02:48]} 11. Be3 {[%clk 0:01:54]}  Qc7 {[%clk 0:02:45]} 12. b4 {[%clk 0:01:45]}  Bxb4 {[%clk 0:02:42]} 13. Rb1 {[%clk 0:01:42]}  Bd6 {[%clk 0:02:42]} 14. Qd2 {[%clk 0:01:37]}  h5 {[%clk 0:02:35]} 15. f5 {[%clk 0:01:33]}  exf5 {[%clk 0:02:15]} 16. gxf5 {[%clk 0:01:31]}  Bh7 {[%clk 0:02:15]} 17. d5 {[%clk 0:01:18]}  O-O {[%clk 0:01:49]} 18. dxc6 {[%clk 0:01:12]}  bxc6 {[%clk 0:01:50]} 19. Kh1 {[%clk 0:01:10]}  Nb6 {[%clk 0:01:47]} 20. Bg5 {[%clk 0:00:55]}  Be5 {[%clk 0:01:41]} 21. Rb3 {[%clk 0:00:27]}  Rad8 {[%clk 0:01:38]} 22. Qe1 {[%clk 0:00:25]}  Qd7 {[%clk 0:01:23]} 23. Qh4 {[%clk 0:00:23]}  Bxf5 {[%clk 0:01:21]} 24. Ng3 {[%clk 0:00:13]}  Bg6 {[%clk 0:01:16]} 25. Bxf6 {[%clk 0:00:12]}  Bxf6 {[%clk 0:01:17]} 26. Rxf6 {[%clk 0:00:11]}  gxf6 {[%clk 0:01:18]} 27. Nxh5 {[%clk 0:00:12]}  Qf5 {[%clk 0:01:07]} 28. Nxf6+ {[%clk 0:00:11]}  Kg7 {[%clk 0:01:04]} 29. Nce4 {[%clk 0:00:12]}  Rh8 {[%clk 0:01:01]} 30. Qg3 {[%clk 0:00:12]}  Nd5 {[%clk 0:00:44]} 31. Rf3 {[%clk 0:00:13]}  Qe6 {[%clk 0:00:39]} 32. Nxd5 {[%clk 0:00:11]}  Rxd5 {[%clk 0:00:34]} 33. Ng5 {[%clk 0:00:09]}  Qe5 {[%clk 0:00:34]} 34. Rxf7+ {[%clk 0:00:08]}  Bxf7 {[%clk 0:00:32]} 35. Ne6+ {[%clk 0:00:08]}  Kf6 {[%clk 0:00:31]} 36. Qg7+ {[%clk 0:00:02]}  Kxe6 {[%clk 0:00:31]} 37. Bxd5+ {[%clk 0:00:03]}  Qxd5+ {[%clk 0:00:31]} 0-1


[Site "https://www.chess.com"]

[Event "Titled Tuesday Blitz February 28 Early 2023"]
[White "Trent, Lawrence"]
[Black "Cabezas Solano, David Alejandro"]
[WhiteFideId "408638"]
[BlackFideId "6507522"]
[WhiteElo "2458"]
[BlackElo "2030"]
[Result "1-0"]
[Round "03"]
[TimeControl "180+2"]
[Date "2023.02.28"]
[WhiteClock "0:01:22"]
[BlackClock "0:00:16"]

1. Nc3 {[%clk 0:03:00]}  d5 {[%clk 0:02:58]} 2. d4 {[%clk 0:03:00]}  Nf6 {[%clk 0:02:58]} 3. Bf4 {[%clk 0:03:00]}  e6 {[%clk 0:02:57]} 4. e3 {[%clk 0:03:00]}  Be7 {[%clk 0:02:57]} 5. Bd3 {[%clk 0:03:00]}  O-O {[%clk 0:02:57]} 6. Nf3 {[%clk 0:03:00]}  c5 {[%clk 0:02:54]} 7. dxc5 {[%clk 0:03:00]}  Bxc5 {[%clk 0:02:54]} 8. O-O {[%clk 0:03:01]}  Nc6 {[%clk 0:02:54]} 9. e4 {[%clk 0:02:57]}  dxe4 {[%clk 0:02:40]} 10. Nxe4 {[%clk 0:02:57]}  Be7 {[%clk 0:02:40]} 11. a3 {[%clk 0:02:55]}  h6 {[%clk 0:02:27]} 12. Qe2 {[%clk 0:02:54]}  Nd5 {[%clk 0:02:20]} 13. Bd2 {[%clk 0:02:54]}  Re8 {[%clk 0:02:18]} 14. Rad1 {[%clk 0:02:53]}  Qc7 {[%clk 0:02:16]} 15. g3 {[%clk 0:02:36]}  b6 {[%clk 0:02:06]} 16. Rfe1 {[%clk 0:02:36]}  Bb7 {[%clk 0:02:06]} 17. c4 {[%clk 0:02:34]}  Nf6 {[%clk 0:02:06]} 18. Nxf6+ {[%clk 0:02:33]}  Bxf6 {[%clk 0:02:06]} 19. Qe4 {[%clk 0:02:33]}  g6 {[%clk 0:01:55]} 20. Qg4 {[%clk 0:02:34]}  Bg7 {[%clk 0:01:42]} 21. Bf4 {[%clk 0:02:28]}  e5 {[%clk 0:01:34]} 22. Bc1 {[%clk 0:02:27]}  Bc8 {[%clk 0:01:29]} 23. Qe4 {[%clk 0:02:27]}  Bf5 {[%clk 0:01:29]} 24. Qh4 {[%clk 0:02:21]}  g5 {[%clk 0:01:12]} 25. Bxg5 {[%clk 0:02:13]}  Bxd3 {[%clk 0:01:03]} 26. Rxd3 {[%clk 0:02:12]}  e4 {[%clk 0:01:00]} 27. Rxe4 {[%clk 0:02:11]}  Rxe4 {[%clk 0:00:59]} 28. Qxe4 {[%clk 0:02:12]}  hxg5 {[%clk 0:00:57]} 29. Nxg5 {[%clk 0:02:13]}  Rd8 {[%clk 0:00:39]} 30. Rf3 {[%clk 0:02:05]}  Qe7 {[%clk 0:00:22]} 31. Qh7+ {[%clk 0:01:57]}  Kf8 {[%clk 0:00:21]} 32. Rxf7+ {[%clk 0:01:23]}  Qxf7 {[%clk 0:00:20]} 33. Nxf7 {[%clk 0:01:24]}  Kxf7 {[%clk 0:00:21]} 34. b4 {[%clk 0:01:24]}  Ne5 {[%clk 0:00:20]} 35. Qf5+ {[%clk 0:01:24]}  Ke7 {[%clk 0:00:19]} 36. c5 {[%clk 0:01:22]}  bxc5 {[%clk 0:00:16]} 37. bxc5 {[%clk 0:01:23]}  Rd1+ {[%clk 0:00:16]} 38. Kg2 {[%clk 0:01:23]}  Rc1 {[%clk 0:00:16]} 39. Qg5+ {[%clk 0:01:22]} 1-0


[Site "https://www.chess.com"]

[Event "Titled Tuesday Blitz February 28 Early 2023"]
[White "Abdilkhair, Abilmansur"]
[Black "Atakhan, Abtin"]
[WhiteFideId "13716417"]
[BlackFideId "22502203"]
[WhiteElo "2216"]
[BlackElo "2189"]
[Result "1/2-1/2"]
[Round "03"]
[TimeControl "180+2"]
[Date "2023.02.28"]
[WhiteClock "0:00:03"]
[BlackClock "0:00:04"]

1. d4 {[%clk 0:02:57]}  Nf6 {[%clk 0:02:59]} 2. c4 {[%clk 0:02:57]}  e6 {[%clk 0:02:59]} 3. Nc3 {[%clk 0:02:58]}  Bb4 {[%clk 0:02:57]} 4. Bg5 {[%clk 0:02:58]}  h6 {[%clk 0:02:56]} 5. Bh4 {[%clk 0:02:57]}  c5 {[%clk 0:02:54]} 6. Nf3 {[%clk 0:02:52]}  g5 {[%clk 0:02:50]} 7. Bg3 {[%clk 0:02:51]}  Ne4 {[%clk 0:02:43]} 8. Qc2 {[%clk 0:02:48]}  d5 {[%clk 0:02:35]} 9. e3 {[%clk 0:02:39]}  Nc6 {[%clk 0:02:32]} 10. Bd3 {[%clk 0:02:36]}  Qa5 {[%clk 0:02:25]} 11. O-O {[%clk 0:01:54]}  Nxg3 {[%clk 0:02:11]} 12. fxg3 {[%clk 0:01:49]}  cxd4 {[%clk 0:02:07]} 13. exd4 {[%clk 0:01:44]}  O-O {[%clk 0:01:13]} 14. c5 {[%clk 0:01:07]}  g4 {[%clk 0:00:55]} 15. Bh7+ {[%clk 0:00:51]}  Kg7 {[%clk 0:00:45]} 16. Nh4 {[%clk 0:00:39]}  f5 {[%clk 0:00:45]} 17. Bxf5 {[%clk 0:00:20]}  exf5 {[%clk 0:00:29]} 18. Nxd5 {[%clk 0:00:20]}  Nxd4 {[%clk 0:00:26]} 19. Qd3 {[%clk 0:00:17]}  Bxc5 {[%clk 0:00:26]} 20. Kh1 {[%clk 0:00:16]}  Be6 {[%clk 0:00:24]} 21. b4 {[%clk 0:00:14]}  Qb5 {[%clk 0:00:16]} 22. Qxb5 {[%clk 0:00:05]}  Nxb5 {[%clk 0:00:17]} 23. Nf4 {[%clk 0:00:06]}  Bd7 {[%clk 0:00:12]} 24. bxc5 {[%clk 0:00:06]}  Rac8 {[%clk 0:00:10]} 25. Nhg6 {[%clk 0:00:06]}  Rfe8 {[%clk 0:00:10]} 26. Rad1 {[%clk 0:00:06]}  Rc7 {[%clk 0:00:09]} 27. Rfe1 {[%clk 0:00:05]}  Rxe1+ {[%clk 0:00:04]} 28. Rxe1 {[%clk 0:00:06]}  Bc8 {[%clk 0:00:04]} 29. Ne5 {[%clk 0:00:05]}  Rxc5 {[%clk 0:00:03]} 30. h3 {[%clk 0:00:06]}  gxh3 {[%clk 0:00:03]} 31. gxh3 {[%clk 0:00:07]}  Rc7 {[%clk 0:00:03]} 32. h4 {[%clk 0:00:06]}  Nd6 {[%clk 0:00:03]} 33. Nh5+ {[%clk 0:00:05]}  Kf8 {[%clk 0:00:02]} 34. Ng6+ {[%clk 0:00:03]}  Kf7 {[%clk 0:00:03]} 35. Ne5+ {[%clk 0:00:03]}  Kf8 {[%clk 0:00:03]} 36. Nf6 {[%clk 0:00:04]}  Ne4 {[%clk 0:00:03]} 37. Nd5 {[%clk 0:00:04]}  Rc5 {[%clk 0:00:03]} 38. Ng6+ {[%clk 0:00:01]}  Kg7 {[%clk 0:00:02]} 39. Ngf4 {[%clk 0:00:02]}  Nxg3+ {[%clk 0:00:02]} 40. Kg2 {[%clk 0:00:03]}  Ne4 {[%clk 0:00:03]} 41. Rg1 {[%clk 0:00:03]}  Rc2+ {[%clk 0:00:02]} 42. Kf3+ {[%clk 0:00:03]}  Kf7 {[%clk 0:00:02]} 43. Rg6 {[%clk 0:00:04]}  Rf2+ {[%clk 0:00:02]} 44. Ke3 {[%clk 0:00:04]}  Rxa2 {[%clk 0:00:01]} 45. Rxh6 {[%clk 0:00:03]}  Ra3+ {[%clk 0:00:02]} 46. Kd4 {[%clk 0:00:03]}  Bd7 {[%clk 0:00:03]} 47. Ke5 {[%clk 0:00:03]}  Bc6 {[%clk 0:00:03]} 48. Rh7+ {[%clk 0:00:04]}  Kg8 {[%clk 0:00:03]} 49. Nf6+ {[%clk 0:00:04]}  Nxf6 {[%clk 0:00:03]} 50. Re7 {[%clk 0:00:02]}  Ng4+ {[%clk 0:00:03]} 51. Kxf5 {[%clk 0:00:02]}  Nh6+ {[%clk 0:00:03]} 52. Kg6 {[%clk 0:00:02]}  Ra6 {[%clk 0:00:03]} 53. Kxh6 {[%clk 0:00:02]}  Kf8 {[%clk 0:00:03]} 54. Rc7 {[%clk 0:00:02]}  Be8+ {[%clk 0:00:03]} 55. Kg5 {[%clk 0:00:02]}  Ra5+ {[%clk 0:00:03]} 56. Kg4 {[%clk 0:00:02]}  Rb5 {[%clk 0:00:02]} 57. h5 {[%clk 0:00:03]}  Rb6 {[%clk 0:00:01]} 58. h6 {[%clk 0:00:03]}  Rxh6 {[%clk 0:00:02]} 59. Rxb7 {[%clk 0:00:04]}  Rc6 {[%clk 0:00:02]} 60. Rxa7 {[%clk 0:00:04]}  Rd6 {[%clk 0:00:02]} 61. Kg5 {[%clk 0:00:05]}  Rd7 {[%clk 0:00:02]} 62. Ne6+ {[%clk 0:00:05]}  Ke7 {[%clk 0:00:03]} 63. Rxd7+ {[%clk 0:00:03]}  Bxd7 {[%clk 0:00:04]} 1/2-1/2


[Site "https://www.chess.com"]

[Event "Titled Tuesday Blitz February 28 Early 2023"]
[White "Goltseva, Ekaterina"]
[Black "Kononenko, Dmitry"]
[WhiteFideId "24173770"]
[BlackFideId "14113538"]
[WhiteElo "2200"]
[BlackElo "2206"]
[Result "1-0"]
[Round "03"]
[TimeControl "180+2"]
[Date "2023.02.28"]
[WhiteClock "0:00:07"]
[BlackClock "0:00:04"]

1. Nf3 {[%clk 0:02:46]}  c5 {[%clk 0:02:59]} 2. c4 {[%clk 0:02:40]}  Nc6 {[%clk 0:02:58]} 3. Nc3 {[%clk 0:02:40]}  g6 {[%clk 0:02:59]} 4. g3 {[%clk 0:02:40]}  Bg7 {[%clk 0:02:58]} 5. Bg2 {[%clk 0:02:41]}  d6 {[%clk 0:02:59]} 6. O-O {[%clk 0:02:41]}  Bf5 {[%clk 0:03:00]} 7. e4 {[%clk 0:02:34]}  Bd7 {[%clk 0:02:58]} 8. d3 {[%clk 0:02:34]}  Nf6 {[%clk 0:02:57]} 9. Be3 {[%clk 0:02:31]}  O-O {[%clk 0:02:57]} 10. Ne1 {[%clk 0:02:28]}  Rb8 {[%clk 0:02:52]} 11. f4 {[%clk 0:02:27]}  Ng4 {[%clk 0:02:52]} 12. Nc2 {[%clk 0:02:21]}  Nxe3 {[%clk 0:02:51]} 13. Nxe3 {[%clk 0:02:22]}  a6 {[%clk 0:02:51]} 14. Kh1 {[%clk 0:02:22]}  b5 {[%clk 0:02:51]} 15. Rb1 {[%clk 0:02:16]}  bxc4 {[%clk 0:02:44]} 16. Nxc4 {[%clk 0:02:08]}  Nd4 {[%clk 0:02:37]} 17. Nd5 {[%clk 0:02:04]}  Bc6 {[%clk 0:02:34]} 18. f5 {[%clk 0:01:54]}  Bxd5 {[%clk 0:02:28]} 19. exd5 {[%clk 0:01:52]}  Nxf5 {[%clk 0:02:29]} 20. b3 {[%clk 0:01:34]}  h5 {[%clk 0:02:23]} 21. Rxf5 {[%clk 0:01:31]}  gxf5 {[%clk 0:02:23]} 22. Qxh5 {[%clk 0:01:31]}  e6 {[%clk 0:02:19]} 23. Re1 {[%clk 0:01:30]}  Re8 {[%clk 0:02:13]} 24. Rf1 {[%clk 0:01:24]}  Rb4 {[%clk 0:02:05]} 25. g4 {[%clk 0:01:22]}  Rxc4 {[%clk 0:01:58]} 26. dxc4 {[%clk 0:01:06]}  Qf6 {[%clk 0:01:56]} 27. dxe6 {[%clk 0:00:57]}  Rxe6 {[%clk 0:01:50]} 28. gxf5 {[%clk 0:00:56]}  Re3 {[%clk 0:01:42]} 29. Bd5 {[%clk 0:00:55]}  Kf8 {[%clk 0:01:40]} 30. Rg1 {[%clk 0:00:52]}  Re5 {[%clk 0:01:35]} 31. Rf1 {[%clk 0:00:48]}  Ke7 {[%clk 0:01:28]} 32. Qg4 {[%clk 0:00:46]}  Bh6 {[%clk 0:01:27]} 33. Qf3 {[%clk 0:00:42]}  Re3 {[%clk 0:01:26]} 34. Qg4 {[%clk 0:00:41]}  Bg5 {[%clk 0:01:22]} 35. Qh5 {[%clk 0:00:36]}  Re5 {[%clk 0:01:16]} 36. Qg4 {[%clk 0:00:34]}  Bd2 {[%clk 0:01:10]} 37. Be4 {[%clk 0:00:32]}  Bc3 {[%clk 0:01:08]} 38. Rd1 {[%clk 0:00:28]}  Bd4 {[%clk 0:01:07]} 39. Rf1 {[%clk 0:00:28]}  Kf8 {[%clk 0:01:05]} 40. h4 {[%clk 0:00:26]}  Ke7 {[%clk 0:00:59]} 41. h5 {[%clk 0:00:25]}  Kd7 {[%clk 0:00:57]} 42. Qf4 {[%clk 0:00:24]}  Kc7 {[%clk 0:00:55]} 43. h6 {[%clk 0:00:23]}  Re8 {[%clk 0:00:54]} 44. Rf3 {[%clk 0:00:23]}  Be5 {[%clk 0:00:50]} 45. Qd2 {[%clk 0:00:19]}  Rh8 {[%clk 0:00:46]} 46. Rh3 {[%clk 0:00:18]}  Bd4 {[%clk 0:00:39]} 47. Qf4 {[%clk 0:00:18]}  Rg8 {[%clk 0:00:34]} 48. Bg2 {[%clk 0:00:12]}  Re8 {[%clk 0:00:31]} 49. Qh4 {[%clk 0:00:03]}  Qh8 {[%clk 0:00:25]} 50. h7 {[%clk 0:00:03]}  Re2 {[%clk 0:00:20]} 51. Bf3 {[%clk 0:00:03]}  Rxa2 {[%clk 0:00:20]} 52. Qe7+ {[%clk 0:00:03]}  Kc8 {[%clk 0:00:15]} 53. Qb7+ {[%clk 0:00:03]}  Kd8 {[%clk 0:00:16]} 54. Qb8+ {[%clk 0:00:03]}  Ke7 {[%clk 0:00:16]} 55. Qc7+ {[%clk 0:00:03]}  Kf6 {[%clk 0:00:10]} 56. Qxd6+ {[%clk 0:00:03]}  Kxf5 {[%clk 0:00:09]} 57. Qd5+ {[%clk 0:00:03]}  Kf6 {[%clk 0:00:08]} 58. Rh5 {[%clk 0:00:03]}  Ra1+ {[%clk 0:00:07]} 59. Kh2 {[%clk 0:00:04]}  Bg1+ {[%clk 0:00:07]} 60. Kg2 {[%clk 0:00:04]}  Qg7+ {[%clk 0:00:06]} 61. Kh3 {[%clk 0:00:04]}  Bd4 {[%clk 0:00:06]} 62. Qf5+ {[%clk 0:00:03]}  Ke7 {[%clk 0:00:06]} 63. Qe4+ {[%clk 0:00:03]}  Kf8 {[%clk 0:00:06]} 64. h8=Q+ {[%clk 0:00:03]}  Qxh8 {[%clk 0:00:05]} 65. Rxh8+ {[%clk 0:00:04]}  Bxh8 {[%clk 0:00:06]} 66. Qh4 {[%clk 0:00:04]}  Kg7 {[%clk 0:00:07]} 67. Qg5+ {[%clk 0:00:04]}  Kf8 {[%clk 0:00:07]} 68. Qxc5+ {[%clk 0:00:04]}  Kg8 {[%clk 0:00:07]} 69. Qc6 {[%clk 0:00:05]}  Rd1 {[%clk 0:00:05]} 70. c5 {[%clk 0:00:05]}  Rd8 {[%clk 0:00:05]} 71. Qe4 {[%clk 0:00:05]}  Bf6 {[%clk 0:00:05]} 72. c6 {[%clk 0:00:06]}  Rc8 {[%clk 0:00:05]} 73. Qc4 {[%clk 0:00:06]}  Kf8 {[%clk 0:00:05]} 74. Qxa6 {[%clk 0:00:06]}  Rc7 {[%clk 0:00:05]} 75. Qb6 {[%clk 0:00:07]}  Be5 {[%clk 0:00:05]} 76. b4 {[%clk 0:00:07]}  Ke7 {[%clk 0:00:05]} 77. b5 {[%clk 0:00:04]}  f5 {[%clk 0:00:06]} 78. Qc5+ {[%clk 0:00:05]}  Kf6 {[%clk 0:00:06]} 79. b6 {[%clk 0:00:05]}  Rg7 {[%clk 0:00:06]} 80. c7 {[%clk 0:00:03]}  Rg3+ {[%clk 0:00:06]} 81. Kh4 {[%clk 0:00:03]}  Rxf3 {[%clk 0:00:05]} 82. Qxe5+ {[%clk 0:00:02]}  Kxe5 {[%clk 0:00:04]} 83. c8=Q {[%clk 0:00:03]}  Rf4+ {[%clk 0:00:05]} 84. Kg5 {[%clk 0:00:03]}  Rg4+ {[%clk 0:00:05]} 85. Kh6 {[%clk 0:00:04]}  Kf4 {[%clk 0:00:04]} 86. Qc4+ {[%clk 0:00:03]}  Kg3 {[%clk 0:00:04]} 87. Qc3+ {[%clk 0:00:04]}  Kh4 {[%clk 0:00:04]} 88. b7 {[%clk 0:00:04]}  f4 {[%clk 0:00:04]} 89. b8=Q {[%clk 0:00:05]}  Rg3 {[%clk 0:00:04]} 90. Qd8+ {[%clk 0:00:05]}  Kh3 {[%clk 0:00:04]} 91. Qe1 {[%clk 0:00:04]}  f3 {[%clk 0:00:04]} 92. Qf2 {[%clk 0:00:04]}  Kg4 {[%clk 0:00:03]} 93. Qd7+ {[%clk 0:00:05]}  Kh4 {[%clk 0:00:03]} 94. Qe7+ {[%clk 0:00:05]}  Kh3 {[%clk 0:00:03]} 95. Qe6+ {[%clk 0:00:05]}  Kh4 {[%clk 0:00:03]} 96. Qf6+ {[%clk 0:00:05]}  Kg4 {[%clk 0:00:03]} 97. Qg6+ {[%clk 0:00:05]}  Kf4 {[%clk 0:00:03]} 98. Qgxg3+ {[%clk 0:00:06]}  Ke4 {[%clk 0:00:04]} 99. Qgxf3+ {[%clk 0:00:07]} 1-0


[Site "https://www.chess.com"]

[Event "Titled Tuesday Blitz February 28 Early 2023"]
[White "Guliev, Logman"]
[Black "Orlov, Georgi"]
[WhiteFideId "13400061"]
[BlackFideId "2011271"]
[WhiteElo "2161"]
[BlackElo "2636"]
[Result "0-1"]
[Round "03"]
[TimeControl "180+2"]
[Date "2023.02.28"]
[WhiteClock "0:00:02"]
[BlackClock "0:00:13"]

1. e4 {[%clk 0:02:57]}  c5 {[%clk 0:02:58]} 2. Nf3 {[%clk 0:02:55]}  e6 {[%clk 0:02:57]} 3. d4 {[%clk 0:02:52]}  cxd4 {[%clk 0:02:57]} 4. Nxd4 {[%clk 0:02:52]}  a6 {[%clk 0:02:57]} 5. Bd3 {[%clk 0:02:52]}  Bc5 {[%clk 0:02:56]} 6. Nb3 {[%clk 0:02:51]}  Ba7 {[%clk 0:02:54]} 7. Qe2 {[%clk 0:02:50]}  Nc6 {[%clk 0:02:50]} 8. Nc3 {[%clk 0:02:50]}  Nge7 {[%clk 0:02:45]} 9. Be3 {[%clk 0:02:47]}  Ng6 {[%clk 0:02:42]} 10. O-O-O {[%clk 0:02:45]}  Qc7 {[%clk 0:02:34]} 11. g3 {[%clk 0:02:43]}  O-O {[%clk 0:02:06]} 12. f4 {[%clk 0:02:41]}  d6 {[%clk 0:02:05]} 13. h4 {[%clk 0:02:39]}  Nge7 {[%clk 0:01:58]} 14. h5 {[%clk 0:02:37]}  Bxe3+ {[%clk 0:01:52]} 15. Qxe3 {[%clk 0:02:35]}  b5 {[%clk 0:01:52]} 16. g4 {[%clk 0:02:33]}  Bb7 {[%clk 0:01:39]} 17. g5 {[%clk 0:02:30]}  Nb4 {[%clk 0:01:31]} 18. g6 {[%clk 0:02:21]}  fxg6 {[%clk 0:01:27]} 19. hxg6 {[%clk 0:02:21]}  h6 {[%clk 0:01:27]} 20. f5 {[%clk 0:02:15]}  exf5 {[%clk 0:01:11]} 21. Rdg1 {[%clk 0:01:18]}  f4 {[%clk 0:01:06]} 22. Qd2 {[%clk 0:01:07]}  Rf6 {[%clk 0:00:51]} 23. Nd5 {[%clk 0:00:58]}  Nexd5 {[%clk 0:00:48]} 24. exd5 {[%clk 0:00:57]}  Nxd3+ {[%clk 0:00:47]} 25. Qxd3 {[%clk 0:00:56]}  Qc4 {[%clk 0:00:45]} 26. Qh3 {[%clk 0:00:31]}  Bxd5 {[%clk 0:00:42]} 27. Rh2 {[%clk 0:00:30]}  f3 {[%clk 0:00:38]} 28. Rf2 {[%clk 0:00:28]}  Re8 {[%clk 0:00:33]} 29. Qd7 {[%clk 0:00:26]}  Qe4 {[%clk 0:00:29]} 30. Rd1 {[%clk 0:00:20]}  Bxb3 {[%clk 0:00:25]} 31. axb3 {[%clk 0:00:19]}  Qxg6 {[%clk 0:00:24]} 32. Kb1 {[%clk 0:00:15]}  Re2 {[%clk 0:00:23]} 33. Qc8+ {[%clk 0:00:14]}  Kh7 {[%clk 0:00:22]} 34. Rdf1 {[%clk 0:00:12]}  Qe4 {[%clk 0:00:20]} 35. Ka2 {[%clk 0:00:09]}  Rxf2 {[%clk 0:00:18]} 36. Rxf2 {[%clk 0:00:10]}  Qe3 {[%clk 0:00:18]} 37. Rf1 {[%clk 0:00:02]}  f2 {[%clk 0:00:18]} 38. Qh3 {[%clk 0:00:02]}  Qxh3 {[%clk 0:00:13]} 0-1


[Site "https://www.chess.com"]

[Event "Titled Tuesday Blitz February 28 Early 2023"]
[White "Kochetov, Andrey"]
[Black "Sadykov, Ramil"]
[WhiteFideId "24130532"]
[BlackFideId "24113590"]
[WhiteElo "2447"]
[BlackElo "2245"]
[Result "0-1"]
[Round "03"]
[TimeControl "180+2"]
[Date "2023.02.28"]
[WhiteClock "0:00:36"]
[BlackClock "0:00:53"]

1. e4 {[%clk 0:03:00]}  c5 {[%clk 0:02:45]} 2. Nf3 {[%clk 0:02:59]}  e6 {[%clk 0:02:44]} 3. d4 {[%clk 0:02:57]}  cxd4 {[%clk 0:02:45]} 4. Nxd4 {[%clk 0:02:57]}  Nc6 {[%clk 0:02:42]} 5. Nc3 {[%clk 0:02:47]}  Nf6 {[%clk 0:02:39]} 6. Nxc6 {[%clk 0:02:46]}  bxc6 {[%clk 0:02:39]} 7. e5 {[%clk 0:02:46]}  Nd5 {[%clk 0:02:39]} 8. Ne4 {[%clk 0:02:46]}  Qb6 {[%clk 0:02:39]} 9. Bd3 {[%clk 0:02:33]}  Nb4 {[%clk 0:02:28]} 10. Bc4 {[%clk 0:02:25]}  Qa5 {[%clk 0:02:22]} 11. O-O {[%clk 0:02:05]}  Qxe5 {[%clk 0:02:19]} 12. Ng3 {[%clk 0:01:53]}  h5 {[%clk 0:02:12]} 13. Re1 {[%clk 0:01:52]}  Qc5 {[%clk 0:01:51]} 14. b3 {[%clk 0:01:50]}  h4 {[%clk 0:01:49]} 15. Ne4 {[%clk 0:01:49]}  Qe5 {[%clk 0:01:40]} 16. Ba3 {[%clk 0:01:14]}  d5 {[%clk 0:01:35]} 17. Nc5 {[%clk 0:01:08]}  Qc3 {[%clk 0:01:04]} 18. Rc1 {[%clk 0:00:36]}  Bxc5 {[%clk 0:00:53]} 0-1


[Site "https://www.chess.com"]

[Event "Titled Tuesday Blitz February 28 Early 2023"]
[White "Skliarov, Viktor"]
[Black "Rosenberg, Evan S"]
[WhiteFideId "14106736"]
[BlackFideId "2019299"]
[WhiteElo "2284"]
[BlackElo "2446"]
[Result "1-0"]
[Round "03"]
[TimeControl "180+2"]
[Date "2023.02.28"]
[WhiteClock "0:00:10"]
[BlackClock "0:00:07"]

1. e4 {[%clk 0:02:57]}  e5 {[%clk 0:02:59]} 2. Nc3 {[%clk 0:02:57]}  Nf6 {[%clk 0:02:59]} 3. Bc4 {[%clk 0:02:57]}  Nc6 {[%clk 0:02:58]} 4. d3 {[%clk 0:02:58]}  Na5 {[%clk 0:02:58]} 5. Nge2 {[%clk 0:02:56]}  Bc5 {[%clk 0:02:51]} 6. Ng3 {[%clk 0:02:54]}  d6 {[%clk 0:02:38]} 7. h3 {[%clk 0:02:53]}  c6 {[%clk 0:02:34]} 8. O-O {[%clk 0:02:50]}  h6 {[%clk 0:02:28]} 9. Na4 {[%clk 0:02:47]}  b5 {[%clk 0:02:13]} 10. Nxc5 {[%clk 0:02:41]}  dxc5 {[%clk 0:02:14]} 11. Bb3 {[%clk 0:02:38]}  O-O {[%clk 0:01:39]} 12. Be3 {[%clk 0:02:37]}  Qe7 {[%clk 0:01:34]} 13. Qf3 {[%clk 0:02:30]}  Rb8 {[%clk 0:01:21]} 14. c3 {[%clk 0:02:10]}  Nxb3 {[%clk 0:01:21]} 15. axb3 {[%clk 0:02:10]}  b4 {[%clk 0:01:06]} 16. c4 {[%clk 0:02:02]}  Rd8 {[%clk 0:01:02]} 17. Rfd1 {[%clk 0:01:57]}  Kh7 {[%clk 0:00:59]} 18. Ra5 {[%clk 0:01:53]}  Nd7 {[%clk 0:00:33]} 19. Nf5 {[%clk 0:01:51]}  Qf6 {[%clk 0:00:28]} 20. Rxa7 {[%clk 0:01:27]}  Rb7 {[%clk 0:00:25]} 21. Ra5 {[%clk 0:01:24]}  Nf8 {[%clk 0:00:21]} 22. Bxc5 {[%clk 0:01:10]}  g6 {[%clk 0:00:19]} 23. Bxf8 {[%clk 0:00:56]}  Rxf8 {[%clk 0:00:17]} 24. Ne3 {[%clk 0:00:55]}  Qxf3 {[%clk 0:00:16]} 25. gxf3 {[%clk 0:00:55]}  f6 {[%clk 0:00:16]} 26. h4 {[%clk 0:00:52]}  h5 {[%clk 0:00:16]} 27. Kf1 {[%clk 0:00:42]}  g5 {[%clk 0:00:16]} 28. hxg5 {[%clk 0:00:40]}  fxg5 {[%clk 0:00:16]} 29. Rxe5 {[%clk 0:00:40]}  Kg6 {[%clk 0:00:15]} 30. Ke2 {[%clk 0:00:39]}  Rbf7 {[%clk 0:00:13]} 31. Rg1 {[%clk 0:00:38]}  g4 {[%clk 0:00:12]} 32. Nc2 {[%clk 0:00:14]}  Rxf3 {[%clk 0:00:11]} 33. Rg2 {[%clk 0:00:15]}  h4 {[%clk 0:00:10]} 34. Ne1 {[%clk 0:00:15]}  h3 {[%clk 0:00:10]} 35. Rh2 {[%clk 0:00:15]}  Rxf2+ {[%clk 0:00:09]} 36. Rxf2 {[%clk 0:00:14]}  g3 {[%clk 0:00:07]} 37. Rxf8 {[%clk 0:00:13]}  h2 {[%clk 0:00:07]} 38. Rh8 {[%clk 0:00:11]}  Bg4+ {[%clk 0:00:07]} 39. Kf1 {[%clk 0:00:10]} 1-0


[Site "https://www.chess.com"]